fUSD/lending_fUSD_20250221
["ID","MTS","AMOUNT","RATE_DAILY","PERIOD"]
[353950911,1740165059794,-500.0,0.00011123,2]
[353950912,1740165059803,-500.0,0.00011123,2]
[353950913,1740165059813,-500.0,0.00011123,2]
[353950914,1740165059822,-503.96682138,0.00011123,2]
[353950915,1740165059831,-500.0,0.00011123,2]
[353950916,1740165059840,-500.0,0.00011123,2]
[353950917,1740165059850,-968.09,0.00011123,2]
[353950918,1740165059859,-501.94,0.00011123,2]
[353950919,1740165059869,-1124.07,0.00011123,2]
[353950920,1740165059878,-500.0,0.00011123,2]
[353950921,1740165059888,-500.0,0.00011123,2]
[353950922,1740165059897,-1924.61,0.00011123,2]
[353950923,1740165059906,-500.0,0.00011123,2]
[353950924,1740165059916,-503.84,0.00011123,2]
[353950925,1740165059927,-500.0,0.00011123,2]
[353950926,1740165059939,-544.68673649,0.00011123,2]
[353950927,1740165059948,-807.41,0.00011123,2]
[353950928,1740165059957,-500.0,0.00011123,2]
[353950929,1740165059967,-500.0,0.00011123,2]
[353950930,1740165059978,-500.0,0.00011123,2]
[353950931,1740165059987,-709.07,0.00011123,2]
[353950932,1740165059997,-1488.79,0.00011123,2]
[353950933,1740165060006,-500.0,0.00011123,2]
[353950934,1740165060016,-571.07,0.00011123,2]
[353950935,1740165060025,-500.0,0.00011123,2]
[353950936,1740165060035,-500.0,0.00011123,2]
[353950937,1740165060045,-500.0,0.00011123,2]
[353950938,1740165060055,-500.0,0.00011123,2]
[353950939,1740165060066,-500.0,0.00011123,2]
[353950940,1740165060077,-805.91,0.00011123,2]
[353950941,1740165060088,-500.0,0.00011123,2]
[353950942,1740165060098,-500.0,0.00011123,2]
[353950943,1740165060108,-500.0,0.00011123,2]
[353950944,1740165060118,-500.0,0.00011123,2]
[353950945,1740165060128,-1851.17,0.00011123,2]
[353950946,1740165060138,-500.0,0.00011123,2]
[353950947,1740165060147,-500.0,0.00011123,2]
[353950948,1740165060157,-761.43,0.00011123,2]
[353950949,1740165060166,-1326.72,0.00011123,2]
[353950950,1740165060175,-500.0,0.00011123,2]
[353950951,1740165060185,-500.0,0.00011123,2]
[353950952,1740165060196,-978.38,0.00011123,2]
[353950953,1740165060205,-906.21,0.00011123,2]
[353950954,1740165060215,-533.8974415,0.00011123,2]
[353950955,1740165060224,-1904.8,0.00011123,2]
[353950956,1740165060234,-880.27,0.00011123,2]
[353950957,1740165060244,-571.47,0.00011123,2]
[353950958,1740165060253,-1097.77,0.00011123,2]
[353950959,1740165060263,-859.08,0.00011123,2]
[353950960,1740165060272,-934.53,0.00011123,2]
[353950961,1740165060281,-500.0,0.00011123,2]
[353950962,1740165060291,-1546.56,0.00011123,2]
[353950963,1740165060300,-583.31,0.00011123,2]
[353950964,1740165060309,-500.0,0.00011123,2]
[353950965,1740165060318,-500.0,0.00011123,2]
[353950966,1740165060328,-500.0,0.00011123,2]
[353950967,1740165060337,-500.0,0.00011123,2]
[353950968,1740165060346,-500.0,0.00011123,2]
[353950969,1740165060357,-1130.91,0.00011123,2]
[353950970,1740165060366,-500.0,0.00011123,2]
[353950971,1740165060376,-500.0,0.00011123,2]
[353950972,1740165060386,-500.0,0.00011123,2]
[353950973,1740165060396,-500.0,0.00011123,2]
[353950974,1740165060405,-851.02,0.00011123,2]
[353950975,1740165060414,-585.41,0.00011123,2]
[353950976,1740165060423,-500.0,0.00011123,2]
[353950977,1740165060432,-500.0,0.00011123,2]
[353950978,1740165060442,-568.02,0.00011123,2]
[353950979,1740165060452,-887.3,0.00011123,2]
[353950980,1740165060461,-500.0,0.00011123,2]
[353950981,1740165060470,-4138.33,0.00011123,2]
[353950982,1740165060479,-500.0,0.00011123,2]
[353950983,1740165060488,-500.0,0.00011123,2]
[353950984,1740165060498,-1028.99,0.00011123,2]
[353950985,1740165060508,-500.0,0.00011123,2]
[353950986,1740165060518,-500.0,0.00011123,2]
[353950987,1740165060527,-500.0,0.00011123,2]
[353950988,1740165060537,-541.18130004,0.00011123,2]
[353950989,1740165060546,-500.0,0.00011123,2]
[353950990,1740165060555,-2434.92,0.00011123,2]
[353950991,1740165060564,-500.0,0.00011123,2]
[353950992,1740165060574,-1865.97,0.00011123,2]
[353950993,1740165060584,-864.63,0.00011123,2]
[353950994,1740165060593,-500.0,0.00011123,2]
[353950995,1740165060604,-2807.32,0.00011123,2]
[353950996,1740165060614,-500.0,0.00011123,2]
[353950997,1740165060623,-2485.93,0.00011123,2]
[353950998,1740165060633,-505.95394477,0.00011123,2]
[353950999,1740165060642,-500.0,0.00011123,2]
[353951000,1740165060652,-500.0,0.00011123,2]
[353951001,1740165060661,-1948.35,0.00011123,2]
[353951002,1740165060671,-500.0,0.00011123,2]
[353951003,1740165060681,-1949.15,0.00011123,2]
[353951004,1740165060690,-1250.92,0.00011123,2]
[353951005,1740165060700,-1368.66,0.00011123,2]
[353951006,1740165060710,-520.29,0.00011123,2]
[353951007,1740165060719,-500.0,0.00011123,2]
[353951008,1740165060729,-1591.76,0.00011123,2]
[353951009,1740165060738,-500.0,0.00011123,2]
[353951010,1740165060748,-500.0,0.00011123,2]
[353951011,1740165060758,-3268.34,0.00011123,2]
[353951012,1740165060767,-263.21,0.00011123,2]
[353951013,1740165060777,-854.07,0.00011123,2]
[353951014,1740165060787,-500.0,0.00011123,2]
[353951015,1740165060797,-844.22,0.00011123,2]
[353951016,1740165060806,-1747.18,0.00011123,2]
[353951017,1740165060816,-2153.78,0.00011123,2]
[353951018,1740165060977,-1927.68,0.00011123,2]
[353951019,1740165060991,-500.0,0.00011123,2]
[353951020,1740165061001,-500.0,0.00011123,2]
[353951021,1740165061010,-500.0,0.00011123,2]
[353951022,1740165061020,-500.0,0.00011123,2]
[353951023,1740165061030,-2392.73,0.00011123,2]
[353951024,1740165061039,-500.0,0.00011123,2]
[353951025,1740165061049,-500.0,0.00011123,2]
[353951026,1740165061059,-2224.89,0.00011123,2]
[353951027,1740165061068,-500.0,0.00011123,2]
[353951028,1740165061078,-648.85,0.00011123,2]
[353951029,1740165061088,-1746.45,0.00011123,2]
[353951030,1740165061098,-579.73,0.00011123,2]
[353951031,1740165061109,-2556.04,0.00011123,2]
[353951032,1740165061119,-500.0,0.00011123,2]
[353951033,1740165061128,-1670.15,0.00011123,2]
[353951034,1740165061138,-2603.67,0.00011123,2]
[353951035,1740165061148,-500.0,0.00011123,2]
[353951036,1740165061158,-500.0,0.00011123,2]
[353951037,1740165061168,-1657.83,0.00011123,2]
[353951038,1740165061178,-500.0,0.00011123,2]
[353951039,1740165061188,-3612.24,0.00011123,2]
[353951040,1740165061197,-503.88097422,0.00011123,2]
[353951041,1740165061207,-500.0,0.00011123,2]
[353951042,1740165061217,-1834.55,0.00011123,2]
[353951043,1740165061227,-1844.51,0.00011123,2]
[353951044,1740165061236,-500.0,0.00011123,2]
[353951045,1740165061247,-2535.0,0.00011123,2]
[353951046,1740165061256,-500.0,0.00011123,2]
[353951047,1740165061266,-500.0,0.00011123,2]
[353951048,1740165061275,-518.53,0.00011123,2]
[353951049,1740165061285,-597.04,0.00011123,2]
[353951050,1740165061295,-453.51218381,0.00011123,2]
[353951051,1740165061304,-549.49,0.00011123,2]
[353951052,1740165061313,-2357.0,0.00011123,2]
[353951053,1740165061323,-845.32,0.00011123,2]
[353951054,1740165061332,-500.0,0.00011123,2]
[353951055,1740165061342,-2963.81,0.00011123,2]
[353951056,1740165061353,-510.94,0.00011123,2]
[353951057,1740165061363,-500.0,0.00011123,2]
[353951058,1740165061372,-2566.53,0.00011123,2]
[353951059,1740165061382,-1026.17,0.00011123,2]
[353951060,1740165061391,-528.93059607,0.00011123,2]
[353951061,1740165061401,-1074.2,0.00011123,2]
[353951062,1740165061410,-550.84,0.00011123,2]
[353951063,1740165061420,-500.0,0.00011123,2]
[353951064,1740165061429,-515.71,0.00011123,2]
[353951065,1740165061439,-5103.01,0.00011123,2]
[353951066,1740165061447,-500.0,0.00011123,2]
[353951067,1740165061457,-1908.26,0.00011123,2]
[353951068,1740165061466,-758.92,0.00011123,2]
[353951069,1740165061476,-500.0,0.00011123,2]
[353951070,1740165061486,-1293.25,0.00011123,2]
[353951071,1740165061496,-939.76,0.00011123,2]
[353951072,1740165061505,-500.0,0.00011123,2]
[353951073,1740165061514,-500.0,0.00011123,2]
[353951074,1740165061523,-2356.45,0.00011123,2]
[353951075,1740165061532,-966.62,0.00011123,2]
[353951076,1740165061541,-974.14,0.00011123,2]
[353951077,1740165061550,-500.0,0.00011123,2]
[353951078,1740165061559,-500.0,0.00011123,2]
[353951079,1740165061568,-1909.2,0.00011123,2]
[353951080,1740165061577,-500.0,0.00011123,2]
[353951081,1740165061587,-818.25,0.00011123,2]
[353951082,1740165061596,-500.0,0.00011123,2]
[353951083,1740165061607,-520.34,0.00011123,2]
[353951084,1740165061617,-500.0,0.00011123,2]
[353951085,1740165061627,-685.93,0.00011123,2]
[353951086,1740165061636,-2768.26,0.00011123,2]
[353951087,1740165061645,-500.0,0.00011123,2]
[353951088,1740165061655,-500.0,0.00011123,2]
[353951089,1740165061664,-1604.23,0.00011123,2]
[353951090,1740165061673,-500.0,0.00011123,2]
[353951091,1740165061682,-2184.09,0.00011123,2]
[353951092,1740165061691,-500.0,0.00011123,2]
[353951093,1740165061701,-464.57,0.00011123,2]
[353951094,1740165061710,-500.0,0.00011123,2]
[353951095,1740165061720,-500.0,0.00011123,2]
[353951096,1740165061730,-500.0,0.00011123,2]
[353951097,1740165061739,-500.0,0.00011123,2]
[353951098,1740165061749,-1998.1,0.00011123,2]
[353951099,1740165061759,-646.23,0.00011123,2]
[353951100,1740165061768,-500.0,0.00011123,2]
[353951101,1740165061778,-1012.21,0.00011123,2]
[353951102,1740165061788,-500.0,0.00011123,2]
[353951103,1740165061797,-554.65,0.00011123,2]
[353951104,1740165061806,-2916.09,0.00011123,2]
[353951105,1740165061816,-500.0,0.00011123,2]
[353951106,1740165061825,-500.0,0.00011123,2]
[353951107,1740165061835,-500.0,0.00011123,2]
[353951108,1740165061845,-500.0,0.00011123,2]
[353951109,1740165061858,-500.0,0.00011123,2]
[353951110,1740165061868,-862.38,0.00011123,2]
[353951111,1740165061877,-500.0,0.00011123,2]
[353951112,1740165061886,-500.0,0.00011123,2]
[353951113,1740165061895,-500.0,0.00011123,2]
[353951114,1740165061905,-500.0,0.00011123,2]
[353951115,1740165061914,-500.0,0.00011123,2]
[353951116,1740165061923,-829.35,0.00011123,2]
[353951117,1740165061936,-565.07,0.00011123,2]
[353951118,1740165061946,-500.0,0.00011123,2]
[353951119,1740165061955,-599.53,0.00011123,2]
[353951120,1740165061965,-500.0,0.00011123,2]
[353951121,1740165061974,-1959.3,0.00011123,2]
[353951122,1740165061983,-1594.81,0.00011123,2]
[353951123,1740165061993,-500.0,0.00011123,2]
[353951124,1740165062003,-500.0,0.00011123,2]
[353951125,1740165062013,-500.0,0.00011123,2]
[353951126,1740165062023,-1779.68,0.00011123,2]
[353951127,1740165062032,-500.0,0.00011123,2]
[353951128,1740165062041,-253.37305889,0.00011123,2]
[353951129,1740165062050,-957.13,0.00011123,2]
[353951130,1740165062059,-1091.45,0.00011123,2]
[353951131,1740165062068,-1026.09,0.00011123,2]
[353951132,1740165062077,-1402.52,0.00011123,2]
[353951133,1740165062086,-829.08,0.00011123,2]
[353951134,1740165062095,-500.0,0.00011123,2]
[353951135,1740165062106,-500.0,0.00011123,2]
[353951136,1740165062115,-875.76,0.00011123,2]
[353951137,1740165062124,-829.3,0.00011123,2]
[353951138,1740165062133,-1629.13,0.00011123,2]
[353951139,1740165062143,-387.63,0.00011123,2]
[353951140,1740165062152,-1178.28,0.00011123,2]
[353951141,1740165062160,-781.38,0.00011123,2]
[353951142,1740165062169,-3393.01,0.00011123,2]
[353951143,1740165062179,-500.0,0.00011123,2]
[353951144,1740165062188,-176.35,0.00011123,2]
[353951145,1740165062197,-500.0,0.00011123,2]
[353951146,1740165062206,-500.0,0.00011123,2]
[353951147,1740165062215,-500.0,0.00011123,2]
[353951148,1740165062224,-500.0,0.00011123,2]
[353951149,1740165062234,-5355.55,0.00011123,2]
[353951150,1740165062243,-1183.94,0.00011123,2]
[353951151,1740165062253,-579.29,0.00011123,2]
[353951152,1740165062262,-736.92,0.00011123,2]
[353951153,1740165062272,-2607.94,0.00011123,2]
[353951154,1740165062281,-500.0,0.00011123,2]
[353951155,1740165062290,-709.36,0.00011123,2]
[353951156,1740165062300,-500.0,0.00011123,2]
[353951157,1740165062310,-500.0,0.00011123,2]
[353951158,1740165062319,-500.0,0.00011123,2]
[353951159,1740165062330,-500.0,0.00011123,2]
[353951160,1740165062340,-1636.76,0.00011123,2]
[353951161,1740165062349,-500.0,0.00011123,2]
[353951162,1740165062362,-777.51,0.00011123,2]
[353951163,1740165062372,-500.0,0.00011123,2]
[353951164,1740165062381,-2680.1,0.00011123,2]
[353951165,1740165062391,-500.0,0.00011123,2]
[353951166,1740165062400,-1426.91,0.00011123,2]
[353951167,1740165062409,-926.57,0.00011123,2]
[353951168,1740165062418,-500.0,0.00011123,2]
[353951169,1740165062428,-500.0,0.00011123,2]
[353951170,1740165062437,-1759.53,0.00011123,2]
[353951171,1740165062446,-500.0,0.00011123,2]
[353951172,1740165062455,-500.0,0.00011123,2]
[353951173,1740165062465,-500.0,0.00011123,2]
[353951174,1740165062474,-3088.04,0.00011123,2]
[353951175,1740165062483,-500.0,0.00011123,2]
[353951176,1740165062492,-500.0,0.00011123,2]
[353951177,1740165062502,-500.0,0.00011123,2]
[353951178,1740165062511,-2102.27,0.00011123,2]
[353951179,1740165062520,-2473.99,0.00011123,2]
[353951180,1740165062530,-507.83921902,0.00011123,2]
[353951181,1740165062540,-1835.58,0.00011123,2]
[353951182,1740165062549,-6791.49,0.00011123,2]
[353951183,1740165062559,-3023.06,0.00011123,2]
[353951184,1740165062569,-854.81,0.00011123,2]
[353951185,1740165062579,-2846.46,0.00011123,2]
[353951186,1740165062588,-1961.8,0.00011123,2]
[353951187,1740165062598,-1161.49,0.00011123,2]
[353951188,1740165062609,-500.0,0.00011123,2]
[353951189,1740165062618,-996.96,0.00011123,2]
[353951190,1740165062627,-726.25,0.00011123,2]
[353951191,1740165062637,-741.19,0.00011123,2]
[353951192,1740165062647,-1065.12,0.00011123,2]
[353951193,1740165062656,-500.0,0.00011123,2]
[353951194,1740165062665,-3844.61,0.00011123,2]
[353951195,1740165062675,-500.0,0.00011123,2]
[353951196,1740165062684,-1447.68,0.00011123,2]
[353951197,1740165062693,-1663.66,0.00011123,2]
[353951198,1740165062703,-500.0,0.00011123,2]
[353951199,1740165062712,-2061.17,0.00011123,2]
[353951200,1740165062721,-898.1,0.00011123,2]
[353951201,1740165062731,-500.0,0.00011123,2]
[353951202,1740165062740,-1470.97,0.00011123,2]
[353951203,1740165062749,-500.0,0.00011123,2]
[353951204,1740165062759,-1165.22,0.00011123,2]
[353951205,1740165062768,-3837.3,0.00011123,2]
[353951206,1740165062777,-787.61,0.00011123,2]
[353951207,1740165062787,-1035.45,0.00011123,2]
[353951208,1740165062796,-5838.06973,0.00011123,2]
[353951209,1740165062805,-2088.16,0.00011123,2]
[353951210,1740165062814,-995.71,0.00011123,2]
[353951211,1740165062824,-1813.73,0.00011123,2]
[353951212,1740165062833,-500.0,0.00011123,2]
[353951213,1740165062843,-5277.6,0.00011123,2]
[353951214,1740165062852,-500.0,0.00011123,2]
[353951215,1740165062862,-2359.06,0.00011123,2]
[353951216,1740165062871,-3353.09,0.00011123,2]
[353951217,1740165062880,-1820.83,0.00011123,2]
[353951218,1740165062890,-163.665974,0.00011123,2]
[353951219,1740165062899,-1070.09,0.00011123,2]
[353951220,1740165062908,-500.0,0.00011123,2]
[353951221,1740165062918,-500.0,0.00011123,2]
[353951222,1740165062930,-3197.57,0.00011123,2]
[353951223,1740165062944,-500.0,0.00011123,2]
[353951224,1740165062953,-1508.14,0.00011123,2]
[353951225,1740165062962,-2115.76,0.00011123,2]
[353951226,1740165062972,-4937.96,0.00011123,2]
[353951227,1740165062981,-500.0,0.00011123,2]
[353951228,1740165062990,-500.0,0.00011123,2]
[353951229,1740165062999,-820.83,0.00011123,2]
[353951230,1740165063008,-1969.18,0.00011123,2]
[353951231,1740165063017,-500.0,0.00011123,2]
[353951232,1740165063026,-500.0,0.00011123,2]
[353951233,1740165063035,-500.0,0.00011123,2]
[353951234,1740165063045,-1293.41,0.00011123,2]
[353951235,1740165063055,-4269.75,0.00011123,2]
[353951236,1740165063064,-1200.1,0.00011123,2]
[353951237,1740165063073,-816.69,0.00011123,2]
[353951238,1740165063083,-2982.14,0.00011123,2]
[353951239,1740165063092,-500.0,0.00011123,2]
[353951240,1740165063102,-500.0,0.00011123,2]
[353951241,1740165063111,-3642.37,0.00011123,2]
[353951242,1740165063120,-500.0,0.00011123,2]
[353951243,1740165063130,-200.0,0.00011151,2]
[353951244,1740165063139,-930.44464938,0.00011187,2]
[353951245,1740165063149,-1315.56631604,0.000112,2]
[353951246,1740165063160,-500.0,0.00011204,2]
[353951247,1740165063169,-283.54645349,0.00011204,2]
[353951248,1740165063179,-232.21089481,0.00011204,2]
[353951249,1740165063188,-500.0,0.00011204,2]
[353951250,1740165063198,-530.78,0.00011204,2]
[353951251,1740165063207,-957.52,0.00011204,2]
[353951252,1740165063217,-1681.69,0.00011204,2]
[353951253,1740165063227,-1370.31,0.00011204,2]
[353951254,1740165063236,-847.07,0.00011204,2]
[353951255,1740165063245,-939.95,0.00011204,2]
[353951256,1740165063255,-1190.44,0.00011204,2]
[353951257,1740165063264,-644.26,0.00011204,2]
[353951258,1740165063274,-852.88,0.00011204,2]
[353951259,1740165063284,-1471.32,0.00011204,2]
[353951260,1740165063294,-678.67,0.00011204,2]
[353951261,1740165063303,-2030.12,0.00011204,2]
[353951262,1740165063370,-626.47,0.00011204,2]
[353951263,1740165063381,-1690.47,0.00011204,2]
[353951264,1740165063390,-865.6,0.00011204,2]
[353951265,1740165063400,-826.13,0.00011204,2]
[353951266,1740165063409,-500.0,0.00011204,2]
[353951267,1740165063419,-683.0,0.00011204,2]
[353951268,1740165063429,-2042.4,0.00011204,2]
[353951269,1740165063438,-1525.59,0.00011204,2]
[353951270,1740165063448,-2138.39,0.00011204,2]
[353951271,1740165063457,-982.38,0.00011204,2]
[353951272,1740165063468,-2241.41,0.00011204,2]
[353951273,1740165063477,-730.28,0.00011204,2]
[353951274,1740165063486,-1227.29,0.00011204,2]
[353951275,1740165063495,-500.0,0.00011204,2]
[353951276,1740165063505,-500.0,0.00011204,2]
[353951277,1740165063514,-500.0,0.00011204,2]
[353951278,1740165063523,-500.0,0.00011204,2]
[353951279,1740165063533,-500.0,0.00011204,2]
[353951280,1740165063542,-901.21,0.00011204,2]
[353951281,1740165063552,-1222.37,0.00011204,2]
[353951282,1740165063561,-731.51,0.00011205,2]
[353951283,1740165063571,-500.0,0.00011205,2]
[353951284,1740165063580,-500.0,0.00011205,2]
[353951285,1740165063589,-500.0,0.00011205,2]
[353951286,1740165063598,-504.77027208,0.00011205,2]
[353951287,1740165063609,-500.0,0.00011205,2]
[353951288,1740165063618,-500.0,0.00011205,2]
[353951289,1740165063627,-573.35,0.00011205,2]
[353951290,1740165063637,-500.0,0.00011205,2]
[353951291,1740165063646,-500.0,0.00011205,2]
[353951292,1740165063655,-500.0,0.00011205,2]
[353951293,1740165063664,-500.0,0.00011205,2]
[353951294,1740165063674,-500.0,0.00011205,2]
[353951295,1740165063683,-500.0,0.00011205,2]
[353951296,1740165063692,-500.0,0.00011205,2]
[353951297,1740165063702,-500.0,0.00011205,2]
[353951298,1740165063711,-500.0,0.00011205,2]
[353951299,1740165063720,-500.0,0.00011205,2]
[353951300,1740165063730,-500.0,0.00011205,2]
[353951301,1740165063739,-516.44,0.00011205,2]
[353951302,1740165063748,-797.23,0.00011205,2]
[353951303,1740165063758,-355.99432225,0.00011205,2]
[353951304,1740165063768,-677.02,0.00011205,2]
[353951305,1740165063777,-818.62,0.00011205,2]
[353951306,1740165063787,-840.96,0.00011205,2]
[353951307,1740165063796,-500.0,0.00011205,2]
[353951308,1740165063805,-500.0,0.00011205,2]
[353951309,1740165063814,-500.0,0.00011205,2]
[353951310,1740165063823,-500.0,0.00011205,2]
[353951311,1740165063832,-500.0,0.00011205,2]
[353951312,1740165063842,-500.0,0.00011205,2]
[353951313,1740165063852,-575.33,0.00011205,2]
[353951314,1740165063861,-500.0,0.00011205,2]
[353951315,1740165063869,-7203.316952,0.00011205,2]
[353951316,1740165063878,-500.0,0.00011205,2]
[353951317,1740165063888,-500.0,0.00011205,2]
[353951318,1740165063897,-500.0,0.00011205,2]
[353951319,1740165063907,-500.0,0.00011205,2]
[353951320,1740165063916,-500.0,0.00011205,2]
[353951321,1740165063927,-1742.76,0.00011205,2]
[353951322,1740165063939,-500.0,0.00011205,2]
[353951323,1740165063949,-500.0,0.00011205,2]
[353951324,1740165063958,-628.2,0.00011205,2]
[353951325,1740165063967,-500.0,0.00011205,2]
[353951326,1740165063978,-500.0,0.00011205,2]
[353951327,1740165063989,-565.11,0.00011205,2]
[353951328,1740165063999,-1160.38,0.00011205,2]
[353951329,1740165064013,-680.99,0.00011205,2]
[353951330,1740165064023,-500.0,0.00011205,2]
[353951331,1740165064033,-626.89,0.00011205,2]
[353951332,1740165064043,-500.0,0.00011205,2]
[353951333,1740165064053,-1029.96,0.00011205,2]
[353951334,1740165064062,-500.0,0.00011205,2]
[353951335,1740165064072,-500.0,0.00011205,2]
[353951336,1740165064081,-500.0,0.00011205,2]
[353951337,1740165064091,-858.03,0.00011205,2]
[353951338,1740165064100,-502.89,0.00011205,2]
[353951339,1740165064110,-589.86,0.00011205,2]
[353951340,1740165064119,-500.0,0.00011205,2]
[353951341,1740165064129,-500.0,0.00011205,2]
[353951342,1740165064138,-1194.6,0.00011205,2]
[353951343,1740165064147,-500.0,0.00011205,2]
[353951344,1740165064157,-500.0,0.00011205,2]
[353951345,1740165064166,-500.0,0.00011205,2]
[353951346,1740165064175,-500.0,0.00011205,2]
[353951347,1740165064185,-1339.27,0.00011205,2]
[353951348,1740165064194,-697.33,0.00011205,2]
[353951349,1740165064204,-500.0,0.00011205,2]
[353951350,1740165064214,-240.83275401,0.00011205,2]
[353951351,1740165064224,-589.93,0.00011205,2]
[353951352,1740165064233,-500.0,0.00011205,2]
[353951353,1740165064242,-500.0,0.00011205,2]
[353951354,1740165064251,-500.0,0.00011205,2]
[353951355,1740165064260,-500.0,0.00011205,2]
[353951356,1740165064269,-500.0,0.00011205,2]
[353951357,1740165064278,-500.0,0.00011205,2]
[353951358,1740165064288,-500.0,0.00011205,2]
[353951359,1740165064298,-1218.86,0.00011205,2]
[353951360,1740165064307,-500.0,0.00011205,2]
[353951361,1740165064316,-872.66,0.00011205,2]
[353951362,1740165064326,-500.0,0.00011205,2]
[353951363,1740165064335,-847.49,0.00011205,2]
[353951364,1740165064344,-500.0,0.00011205,2]
[353951365,1740165064357,-500.0,0.00011205,2]
[353951366,1740165064366,-500.0,0.00011205,2]
[353951367,1740165064376,-1152.78,0.00011205,2]
[353951368,1740165064386,-500.0,0.00011205,2]
[353951369,1740165064396,-784.84,0.00011205,2]
[353951370,1740165064405,-651.21,0.00011205,2]
[353951371,1740165064415,-811.75,0.00011205,2]
[353951372,1740165064425,-500.0,0.00011205,2]
[353951373,1740165064434,-500.0,0.00011205,2]
[353951374,1740165064444,-1602.77,0.00011205,2]
[353951375,1740165064454,-928.49,0.00011205,2]
[353951376,1740165064463,-500.0,0.00011205,2]
[353951377,1740165064472,-1453.54,0.00011205,2]
[353951378,1740165064483,-500.0,0.00011205,2]
[353951379,1740165064492,-500.0,0.00011205,2]
[353951380,1740165064502,-1052.55,0.00011205,2]
[353951381,1740165064511,-654.12,0.00011205,2]
[353951382,1740165064521,-500.0,0.00011205,2]
[353951383,1740165064530,-600.59,0.00011205,2]
[353951384,1740165064539,-500.0,0.00011205,2]
[353951385,1740165064548,-500.0,0.00011205,2]
[353951386,1740165064557,-600.19,0.00011205,2]
[353951387,1740165064566,-500.0,0.00011205,2]
[353951388,1740165064576,-1557.94,0.00011205,2]
[353951389,1740165064585,-723.16,0.00011205,2]
[353951390,1740165064594,-500.0,0.00011205,2]
[353951391,1740165064604,-500.0,0.00011205,2]
[353951392,1740165064614,-973.86,0.00011205,2]
[353951393,1740165064623,-627.0,0.00011205,2]
[353951394,1740165064633,-597.11,0.00011205,2]
[353951395,1740165064643,-1361.06,0.00011205,2]
[353951396,1740165064653,-500.0,0.00011205,2]
[353951397,1740165064663,-500.0,0.00011205,2]
[353951398,1740165064672,-500.0,0.00011205,2]
[353951399,1740165064682,-545.63,0.00011205,2]
[353951400,1740165064692,-684.05,0.00011205,2]
[353951401,1740165064702,-508.67,0.00011205,2]
[353951402,1740165064711,-511.63984345,0.00011205,2]
[353951403,1740165064721,-865.33,0.00011205,2]
[353951404,1740165064730,-565.87,0.00011205,2]
[353951405,1740165064739,-612.75,0.00011205,2]
[353951406,1740165064749,-523.64,0.00011205,2]
[353951407,1740165064759,-645.56,0.00011205,2]
[353951408,1740165064768,-961.54,0.00011205,2]
[353951409,1740165064778,-842.47,0.00011205,2]
[353951410,1740165064788,-500.0,0.00011205,2]